[Event "Super United Croatia GCT Rapid 2022"]
[Site "Zagreb"]
[Date "2022.07.22"]
[Round "9.3"]
[White "Van Foreest, Jorden"]
[Black "Firouzja, Alireza"]
[Result "1-0"]
[ECO "C67"]
[WhiteElo "2678"]
[BlackElo "2793"]
[Annotator "TA"]
[PlyCount "63"]
[EventDate "2022.07.20"]
[EventType "tourn"]
[EventCountry "CRO"]
[SourceTitle "playchess.com"]
[Source "ChessBase"]
[SourceQuality "1"]
[TimeControl "1500+10"]

{[%evp 18,63,16,20,24,-14,-14,-14,-14,-28,-18,-16,-2,-31,-11,-11,35,29,56,50,64,56,56,49,90,46,188,167,164,158,206,198,229,256,304,293,287,96,92,88,474,102,102,95,93,90,1879,1726]} 1. e4 {[%emt 0:00:02]} e5 {[%emt 0:00:01]} 2. Nf3 {[%emt 0:00:03]} Nc6 {[%emt 0:00:01]} 3. Bb5 {[%emt 0:00:08]} Nf6 {[%emt 0:00:02]} 4. O-O {[%emt 0:00:31][%cal Bh1f1,Bf1e1,Be1e5][%mdl 32]} Nxe4 {[%emt 0:00:02]} 5. Re1 {[%emt 0:00:22]} Nd6 {[%emt 0:00:02]} 6. Nxe5 {[%emt 0:00:12]} Be7 {[%emt 0:00:02]} 7. Bf1 {[%emt 0:00:10]} Nxe5 {[%emt 0:00:02]} 8. Rxe5 {[%emt 0:00:02]} O-O {[%emt 0:00:03]} 9. d4 {[%emt 0:00:39]} Bf6 {[%emt 0:00:02]} 10. Re1 {[%emt 0:00:20]} Re8 {[%emt 0:00:06] C67: Ruy Lopez: Berlin Defence: 4 0-0 Nxe4.} 11. Nc3 {[%emt 0:00:14]} Rxe1 {[%emt 0:05:40]} 12. Qxe1 {[%emt 0:00:03]} Bxd4 {[%emt 0:02:34] The position is equal.} 13. Bd3 {[%emt 0:00:52]} Bxc3 {[%emt 0:02:56]} 14. Qxc3 {[%emt 0:00:03]} Ne8 {[%emt 0:00:26] [#]} 15. b3 $146 {[%emt 0:01:00]} ({Predecessor:} 15. Bf4 d6 16. Qb3 Nf6 17. Bg5 h6 18. Bxf6 Qxf6 19. Re1 Be6 20. Qxb7 Rf8 21. a4 {1-0 (85) Maghsoodloo,P (2698)-Sadhwani,R (2555) Chess.com INT 2021}) 15... d6 {[%emt 0:01:05]} 16. Bb2 {[%emt 0:00:02]} Be6 {[%emt 0:00:06]} (16... d5 $11) 17. Qb4 $1 $14 {[%emt 0:01:40][%mdl 1024] White has compensation.} Bd5 {[%emt 0:03:29]} 18. Qf4 {[%emt 0:00:49] [#] Prevents Qg5. Strongly threatening Qf5.} Nf6 {[%emt 0:00:43]} 19. Re1 {[%emt 0:00:18][%cal Ba1e1,Be1e3,Be3g3,Bg3f3][%mdl 32] Inhibits Qe7.} Be6 {[%emt 0:02:09]} 20. Re3 {[%emt 0:00:12] Threatens to win with Rg3.} Kf8 {[%emt 0:01:29]} 21. c4 {[%emt 0:01:35] White is more active.} Nh5 {[%emt 0:03:46]} (21... h6 $1 $14) 22. Qf3 $18 {[%emt 0:00:40]} Nf6 {[%emt 0:00:03]} 23. Qxb7 {[%emt 0:00:50]} Ng4 {[%emt 0:00:05]} (23... Rc8 $16 {keeps fighting.} 24. Qf3 (24. Qxa7 Ra8 $16) 24... Qe7) 24. Rg3 {[%emt 0:00:31]} (24. Bxh7 Nxe3 25. fxe3 Rc8 $17) 24... Rb8 {[%emt 0:01:02]} 25. Qe4 {[%emt 0:01:04]} ({Much less strong is} 25. Qxa7 Ra8 26. Qd4 Qf6) 25... Qg5 {[%emt 0:00:28]} 26. Qxh7 {[%emt 0:03:16] [#] Hoping for Qh8+.} ({Don't play} 26. h3 $6 Qd2 $18) 26... Ke7 {[%emt 0:01:07]} 27. Qxg7 $2 {[%emt 0:00:29]} (27. Bxg7 $18 {is more deadly. And now Bc3 would win.} Qd2 28. Rf3) 27... Qd2 $16 {[%emt 0:00:04]} 28. Rf3 {[%emt 0:00:40]} Qe1+ {[%emt 0:00:36]} 29. Bf1 {[%emt 0:00:02]} Nxh2 {[%emt 0:00:02]} 30. Kxh2 {[%emt 0:01:04] Really sharp!} Qxf1 {[%emt 0:00:02]} 31. c5 {[%emt 0:01:23][%cal Bc4c5,Bc5c6][%mdl 32] White threatens c6 and mate.} Qd1 $2 {[%emt 0:01:23][%mdl 8192]} (31... Kd7 $16) 32. c6 {[%emt 0:00:16] Weighted Error Value: White=0.16 (very precise) /Black=0.47} 1-0

[Event "Super United Croatia GCT Rapid 2022"]
[Site "Zagreb"]
[Date "2022.07.22"]
[Round "9.4"]
[White "Saric, Ivan"]
[Black "Carlsen, Magnus"]
[Result "0-1"]
[ECO "B42"]
[WhiteElo "2680"]
[BlackElo "2864"]
[Annotator "TA"]
[PlyCount "82"]
[EventDate "2022.07.20"]
[EventType "tourn"]
[EventCountry "CRO"]
[SourceTitle "playchess.com"]
[Source "ChessBase"]
[SourceQuality "1"]
[TimeControl "1500+10"]

{[%evp 12,82,38,25,31,35,43,41,43,25,25,19,22,12,35,33,31,19,18,0,19,24,48,0,7,15,10,-58,-48,-107,0,0,0,-135,-47,-52,-45,-128,-16,-37,0,0,0,0,97,0,0,0,0,0,2,-108,-110,-101,-103,-103,-100,-113,-119,-114,-114,-140,-85,-93,-93,-129,-72,-150,-147,-141,-137,-1106,-843]} 1. e4 {[%emt 0:00:02]} c5 {[%emt 0:02:08]} 2. Nf3 {[%emt 0:00:02]} e6 {[%emt 0:00:06]} 3. d4 {[%emt 0:00:06]} cxd4 {[%emt 0:00:01]} 4. Nxd4 {[%emt 0:00:01]} a6 {[%emt 0:00:01]} 5. Bd3 {[%emt 0:00:23]} Bc5 {[%emt 0:00:03]} 6. Nb3 {[%emt 0:00:01]} Ba7 {[%emt 0:00:02]} 7. Qe2 {[%emt 0:00:36]} Ne7 {[%emt 0:00:02] B42: Sicilian: Kan Variation: 5 Bd3.} 8. Be3 {[%emt 0:00:05]} O-O {[%emt 0:00:05]} 9. Bxa7 {[%emt 0:00:28] 9.Bxa7 is setting a new trend.} Rxa7 {[%emt 0:00:01] White is slightly better.} 10. Qe3 {[%emt 0:00:53]} Nbc6 {[%emt 0:00:16]} 11. Nc3 {[%emt 0:00:02]} b5 {[%emt 0:05:02]} 12. O-O-O {[%emt 0:00:23] [#]} Rc7 $146 {[%emt 0:01:23]} ({Predecessor:} 12... e5 13. h4 d6 14. h5 f5 15. f3 Be6 16. Be2 Rd7 17. Nd5 Bxd5 18. exd5 Nb4 {0-1 (40) Lanica,L (1691)-Czajkowski,A (1933) Koszalin 2013}) 13. Kb1 {[%emt 0:02:19]} Ne5 {[%emt 0:01:29]} 14. f4 {[%emt 0:00:13]} Nxd3 {[%emt 0:00:05]} 15. Rxd3 {[%emt 0:00:33]} Bb7 {[%emt 0:00:02]} 16. Rhd1 {[%emt 0:00:16]} Qc8 {[%emt 0:00:04]} 17. g4 {[%emt 0:00:28]} (17. a3 $1 $14) 17... d5 {[%emt 0:01:09]} 18. e5 {[%emt 0:00:51]} b4 {[%emt 0:00:19]} 19. Na4 {[%emt 0:00:10]} ({White should play} 19. Ne2 $11) 19... Rxc2 {[%emt 0:00:18]} 20. h4 {[%emt 0:02:38]} (20. Nd4 $15 Rc7 21. R3d2) 20... d4 {[%emt 0:03:08]} (20... Rc7 $1 $17 {Hoping for ...Bc6.} 21. Qb6 Bc6) 21. Qxd4 $11 {[%emt 0:00:43]} Rg2 {[%emt 0:01:42]} 22. Nbc5 {[%emt 0:02:05]} (22. Rc1 $11 {keeps the balance.} Qe8 23. Nac5 (23. Qxb4 Qb5 $15)) 22... Bd5 {[%emt 0:01:42]} ({Black should try} 22... Nd5 $17 23. Nxb7 Qc2+ 24. Ka1 Qxa4) 23. f5 {[%emt 0:00:15]} Qc7 {[%emt 0:00:19]} (23... exf5 $2 24. Nb6 Qd8 25. Nxd5 $18) 24. Qf4 {[%emt 0:00:43]} (24. Qxb4 $15 Nc6 25. Qb6 Qxb6 26. Nxb6) 24... a5 {[%emt 0:01:01]} (24... Bc6 $17 {...Bxa4 is the strong threat.} 25. Rc1 Nd5 26. Rxd5 Bxd5) 25. h5 {[%emt 0:01:27]} h6 {[%emt 0:00:26]} (25... f6 $5 {[%cal Rf6e5]} 26. Qf1 Rxg4 27. exf6 Rxf6 $15) 26. f6 {[%emt 0:02:09]} gxf6 {[%emt 0:00:02]} 27. Qxh6 {[%emt 0:00:42]} Rxg4 {[%emt 0:02:36] [#]} (27... fxe5 $11 28. Rc1 Rc8) 28. Qxf6 {[%emt 0:00:30]} (28. exf6 Nf5 29. Qc1 Kh8 $17) (28. Nb6 $1 $16 {Intending Ncd7 and mate.} Rd8 (28... Nf5 29. Nxd5) 29. Nxd5 Nxd5 30. Ne4 $1 Qxe5 31. Nxf6+ $1 Qxf6 32. Qxf6 Nxf6 33. Rxd8+ Kg7 34. Rh1) 28... Kh7 $1 {[%emt 0:00:14]} 29. Rc1 $1 {[%emt 0:02:12]} Ng8 {[%emt 0:02:11][%cal Be7g8,Bg8h6,Bh6f5][%mdl 32] Really sharp!} 30. Qf2 {[%emt 0:00:25][%cal Od3d5] Black must now prevent Rxd5!} (30. Nxe6 $2 Bxe6 $1 31. Qf3 (31. Rxc7 $2 {too greedy.} Nxf6 32. Rd1 Nd5 $19) 31... Qxe5 $19) 30... Qc6 {[%emt 0:00:43] [#]} 31. Rg3 {[%emt 0:00:30] [#]} (31. Nb6 $1 $11 Be4 32. Nxe4 Qxe4 33. Qf3) 31... Rxg3 $1 $17 {[%emt 0:00:18]} 32. Qxg3 {[%emt 0:00:02] [#]} Nh6 $1 {[%emt 0:00:04]} 33. Qd3+ {[%emt 0:04:07]} ({Avoid the trap} 33. Rg1 $2 Rg8 34. Qh2 Rxg1+ 35. Qxg1 Be4+ 36. Ka1 Bc2 $19) 33... Nf5 {[%emt 0:00:03]} 34. Rg1 {[%emt 0:00:05]} Rg8 {[%emt 0:01:45]} 35. Rxg8 {[%emt 0:00:04]} Kxg8 {[%emt 0:00:01]} 36. Qd2 {[%emt 0:00:15]} Kh7 {[%emt 0:00:02]} (36... Be4+ $142 37. Ka1 Qb5) 37. b3 {[%emt 0:00:31]} Qc7 {[%emt 0:00:34]} 38. Qe2 {[%emt 0:00:21]} Qd8 {[%emt 0:00:52]} (38... Kh8 $142 39. Qe1 Bc6) 39. Nb2 {[%emt 0:00:57]} (39. Qd2 $142) 39... Qg5 {[%emt 0:00:07] aiming for ...Qg1+.} 40. Nd7 {[%emt 0:00:14]} Ng3 {[%emt 0:00:32][%csl LRe2,LRh5] Black is more active.} 41. Qf2 {[%emt 0:01:30][%mdl 8192]} (41. Qd3+ $17 Kg7 42. h6+ Kxh6 43. Nf6) 41... Be4+ {[%emt 0:00:03] Weighted Error Value: White=0.47/Black=0.22 (precise)} 0-1

[Event "Super United Croatia GCT Rapid 2022"]
[Site "Zagreb"]
[Date "2022.07.22"]
[Round "9.5"]
[White "Nepomniachtchi, Ian"]
[Black "Topalov, Veselin"]
[Result "1-0"]
[ECO "B92"]
[WhiteElo "2766"]
[BlackElo "2728"]
[Annotator "TA"]
[PlyCount "47"]
[EventDate "2022.07.20"]
[EventType "tourn"]
[EventCountry "CRO"]
[SourceTitle "playchess.com"]
[Source "ChessBase"]
[SourceQuality "1"]
[TimeControl "1500+10"]

{[%evp 17,47,12,20,8,12,12,27,2,14,10,23,24,35,0,0,0,0,0,0,-7,-15,-11,-11,-22,-10,-11,-9,-17,-10,-8,461,456]} 1. e4 {[%emt 0:00:01]} c5 {[%emt 0:00:05]} 2. Nf3 {[%emt 0:00:03][%cal Bg1f3,Bf3d4,Bd4b3][%mdl 32]} d6 {[%emt 0:00:01]} 3. d4 {[%emt 0:00:03]} cxd4 {[%emt 0:00:01]} 4. Nxd4 {[%emt 0:00:01]} Nf6 {[%emt 0:00:01]} 5. Nc3 {[%emt 0:00:01]} a6 {[%emt 0:00:02]} 6. Be2 {[%emt 0:00:02]} e5 {[%emt 0:00:07]} 7. Nb3 {[%emt 0:00:02]} Be7 {[%emt 0:00:09]} 8. Be3 {[%emt 0:00:03]} Be6 {[%emt 0:00:03]} 9. O-O {[%emt 0:00:03]} O-O {[%emt 0:00:18]} 10. Re1 {[%emt 0:00:02] B92: Sicilian Najdorf: 6 Be2.} Nbd7 {[%emt 0:01:59]} 11. a4 {[%emt 0:00:02]} Qb8 {[%emt 0:01:37]} 12. a5 {[%emt 0:00:27] [#] White has an edge.} Re8 $146 {[%emt 0:01:09]} ({Predecessor:} 12... Rc8 13. Nd5 Bd8 14. Bd3 b5 15. axb6 Bxd5 16. exd5 Bxb6 17. Rxa6 Rxa6 18. Bxa6 Rc7 {½-½ (58) Korobov,A (2683)-Vachier Lagrave,M (2749) Zagreb 2021}) 13. f3 {[%emt 0:00:17]} b5 {[%emt 0:00:40]} 14. axb6 $1 {[%emt 0:00:04]} Nxb6 {[%emt 0:00:02]} 15. Rxa6 {[%emt 0:01:37]} (15. Kh1 {looks sharper.} Rd8 16. Na5 Qc7 17. Bxb6 Qxb6 18. Bc4) 15... Rxa6 {[%emt 0:00:08]} 16. Bxa6 {[%emt 0:00:02]} d5 {[%emt 0:00:05]} 17. exd5 {[%emt 0:01:00]} Nbxd5 {[%emt 0:00:52]} 18. Nxd5 {[%emt 0:02:31]} Nxd5 {[%emt 0:00:05]} 19. Bf2 {[%emt 0:00:02]} Nb4 {[%emt 0:00:30]} 20. Bf1 {[%emt 0:01:24] [#]} Nxc2 $1 {[%emt 0:01:48][%mdl 64] Remove Defender} 21. Qxc2 {[%emt 0:00:02] Hoping for Nc5.} Bxb3 {[%emt 0:00:06]} 22. Qe4 {[%emt 0:00:16]} Bb4 {[%emt 0:04:26]} 23. Ra1 {[%emt 0:00:21] Ra6 is the strong threat.} g6 $2 {[%emt 0:01:27][%mdl 8192] [#]} (23... Rd8 $11 {and Black stays safe.}) 24. Ra6 $1 {[%emt 0:01:46] Weighted Error Value: White=0.08 (flawless) /Black=0.71} 1-0